Cogmind - Beta 10.2 @@@ ROGUE MODE // 2021.05.27 @ 21:27:02 // AFD2020/Player2 Player: Loboranto Result: Destroyed by D-53 Grenadier with Mini Grenade Launcher Performance ------------- Evolutions (0) 0 Regions Visited (2) 400 Robots Destroyed (5) 25 Value Destroyed (167) 167 Prototype IDs (0) 0 Alien Tech Used (0) 0 Bonus (125) 125 TOTAL SCORE: 717 Bonus ------- Follower Combat Kills 125 Cogmind --------- Core Integrity 0/250 Matter 268/300 Energy 250/250 System Corruption 0% Temperature Cool (0) Movement Treading (160) Location -10/Mines Parts ------- > --- POWER (1) -------- Ion Engine > --- PROPULSION (2) --- Light Treads > --- UTILITY (2) ------ Small Storage Unit Power Shielding > --- WEAPON (2) ------- Assault Rifle > --- INVENTORY (6) ---- Light Ion Engine Medium Matter Pod (0) Sensor Array ECM Suite Particle Gun Datajack Peak State ------------ > --- POWER ------------ Ion Engine > --- PROPULSION ------- Light Treads Light Treads > --- UTILITY ---------- Small Storage Unit Sensor Array > --- WEAPON ----------- Assault Rifle Assault Rifle > --- INVENTORY -------- Light Ion Engine Aluminum Leg Aluminum Leg Wheel Wheel Small Laser [Rating: 7] Favorites ----------- Power Ion Engine Engine Ion Engine Propulsion Light Treads Treads Light Treads Wheel Wheel Utility Small Storage Unit Device Sensor Array Storage Small Storage Unit Protection Power Shielding Weapon Assault Rifle Ballistic Gun Assault Rifle Build | -11 -10 -10 ------- Run | Scr Mat Min Slots Evolved . | . . . Power . | . . . Propulsion . | . . . Utility . | . . . Weapon . | . . . Parts Attached 9 | 7 2 . Power 1 | 1 . . Engine 1 | 1 . . Core . | . . . Reactor . | . . . Propulsion 3 | 3 . . Treads 2 | 2 . . Leg . | . . . Wheel 1 | 1 . . Hover . | . . . Flight . | . . . Utility 3 | 1 2 . Device 1 | . 1 . Storage 1 | 1 . . Processor . | . . . Hackware . | . . . Protection 1 | . 1 . Artifact . | . . . Weapon 2 | 2 . . Energy Gun . | . . . Energy Cannon . | . . . Ballistic Gun 2 | 2 . . Ballistic Cannon . | . . . Launcher . | . . . Special Weapon . | . . . Impact Weapon . | . . . Slashing Weapon . | . . . Piercing Weapon . | . . . Special Melee Weapon . | . . . Unidentified Prototypes . | . . . Parts Lost 2 | . . 2 Power . | . . . Propulsion 1 | . . 1 Utility . | . . . Weapon 1 | . . 1 Highest Loss Streak 2 | . . 2 Average Slot Usage (%) 96 | . 96 100 Engine 14 | . 14 14 Treads 28 | . 28 28 Device 4 | . 5 . Storage 14 | . 14 14 Protection 6 | . 5 14 Ballistic Gun 28 | . 28 28 Naked Turns . | . . . Heaviest Build 14 | 13 14 14 Greatest Support 40 | 40 40 40 Greatest Overweight (x) . | . . . Average Overweight (x) . | . . . Largest Inventory Capacity 6 | 6 6 6 Average Capacity 5 | 5 6 6 Most Carried 6 | 6 6 6 Average Carried 5 | 5 5 6 Final Capacity 6 | 6 6 6 Final Carried 6 | 6 6 6 Class Distribution -------------------- 100% | Mutant Dominant Class ---------------- Mutant | -10/Materials Mutant | -10/Mines Resources | -11 -10 -10 ----------- Run | Scr Mat Min Matter Collected 404 | 196 208 . Remotely . | . . . Salvage Created 168 | . 168 . Parts 12 | . 12 . Haulers Intercepted . | . . . Recyclers Shooed . | . . . Parts Field Recycled . | . . . Retrieved Matter . | . . . Parts Self-Destructed . | . . . Prevented . | . . . Kills | -11 -10 -10 ------- Run | Scr Mat Min Combat Hostiles Destroyed 4 | . 3 1 Guns 4 | . 3 1 Classes Destroyed 3 | . 2 1 Watcher 2 | . 2 . Grunt 3 | . 3 . Assembled 1 | . . 1 Best Kill Streak 2 | . 2 1 Combat Bots Only 1 | . 1 1 Max Kills in Single Turn 2 | . 2 1 Gunslinging 1 | . 1 . Exploded . | . . . Melee . | . . . Uniques/NPCs Destroyed . | . . . Combat | -11 -10 -10 -------- Run | Scr Mat Min Damage Taken 571 | . 120 451 Core 130 | . 11 119 Absorbed by Shields . | . . . Core Remaining (%) 100 | 100 . . Volleys Fired 26 | . 19 7 Largest 2 | . 2 2 Hottest 40 | . 40 40 Shots Fired 52 | . 38 14 Gun 52 | . 38 14 Cannon . | . . . Launcher . | . . . Special . | . . . Kinetic 52 | . 38 14 Thermal . | . . . Explosive . | . . . Electromagnetic . | . . . Robot Hit Streak 5 | . 5 2 Robot Miss Streak 4 | . 4 3 Penetration Max . | . . . Secondary Targets 1 | . 1 . Max Gunslinging Chain 1 | . 1 . Shots Hit Robots 29 | . 23 6 Core Hits 12 | . 8 4 Critical Hits 1 | . 1 . Critical Kills 1 | . 1 . Critical Parts Destroyed . | . . . Melee Attacks . | . . . Impact . | . . . Slashing . | . . . Piercing . | . . . Sneak Attacks . | . . . Combat Hostiles . | . . . Follow-up Attacks . | . . . Damage Inflicted 298 | . 226 72 Guns 298 | . 226 72 Cannons . | . . . Explosions . | . . . Melee . | . . . Ramming . | . . . Kinetic 298 | . 226 72 Thermal . | . . . Explosive . | . . . Electromagnetic . | . . . Impact . | . . . Slashing . | . . . Piercing . | . . . Highest Corruption . | . . . Average Corruption . | . . . Corruption Purged . | . . . Overload Shots . | . . . Overflow Damage . | . . . Projectiles . | . . . Explosions . | . . . Melee . | . . . Knockbacks . | . . . Impact . | . . . Kinetic . | . . . Secondary . | . . . Self-Inflicted Damage . | . . . Shots . | . . . Rammed . | . . . Targets Rammed . | . . . Kicked . | . . . Crushed . | . . . Highest Temperature 13 | . . 13 Average Temperature 9 | . . 9 Received Heat Transfer 86 | . 66 20 Siege Activations . | . . . Robots Corrupted . | . . . Combat Hostiles . | . . . Parts Fried . | . . . Impact Corruptions . | . . . Robots Melted . | . . . Combat Hostiles . | . . . Parts Melted 1 | . 1 . Heat Transferred . | . . . Parts Sabotaged . | . . . Parts Stolen . | . . . Parts Stripped . | . . . Power Chain Reactions . | . . . Missiles Intercepted . | . . . Alert | -11 -10 -10 ------- Run | Scr Mat Min Peak Influence 350 | . 350 151 Initial 136 | . . 136 Average 125 | . 151 146 Maximum Alert Level 1 | . 1 . Low Security (%) 71 | 100 60 100 Level 1 28 | . 39 . Level 2 . | . . . Level 3 . | . . . Level 4 . | . . . Level 5 . | . . . High Security . | . . . Max Security . | . . . Squads Dispatched 4 | . 4 . Investigation 1 | . 1 . Extermination . | . . . Reinforcement 3 | . 3 . Assault . | . . . Garrison . | . . . Intercept . | . . . Construction Impeded . | . . . Haulers Reinforced . | . . . Stealth | -11 -10 -10 --------- Run | Scr Mat Min Distress Signals . | . . . Communications Jammed . | . . . Distress Signals . | . . . Times Spotted 31 | . 16 15 Peak Tracking Total 14 | . 4 14 Tactical Retreats . | . . . Traps | -11 -10 -10 ------- Run | Scr Mat Min Traps Triggered 1 | . 1 . Indirectly . | . . . Trap Hack Attempts . | . . . Triggered . | . . . Disarmed . | . . . Reprogrammed . | . . . Reused . | . . . Traps Extracted . | . . . Installed . | . . . Triggered . | . . . Machines | -11 -10 -10 ---------- Run | Scr Mat Min Machines Disabled 2 | . 2 . Max in Single Turn . | . . . Machines Sabotaged . | . . . Garrisons Compromised . | . . . Overloaded Fab Kills . | . . . Fab Network Shutdowns . | . . . Hacking | -11 -10 -10 --------- Run | Scr Mat Min Machines Accessed 1 | . 1 . Terminals 1 | . 1 . Fabricators . | . . . Repair Stations . | . . . Recycling Units . | . . . Scanalyzers . | . . . Garrison Access . | . . . Total Hacks 2 | . 2 . Successful 1 | . 1 . Failed 1 | . 1 . Catastrophic 1 | . 1 . Database Lockouts . | . . . Manual 2 | . 2 . Terminals 2 | . 2 . Fabricators . | . . . Repair Stations . | . . . Recycling Units . | . . . Scanalyzers . | . . . Garrison Access . | . . . Terminal Hacks 1 | . 1 . Branch Access Points 1 | . 1 . Fabricator Hacks . | . . . Repair Station Hacks . | . . . Recycling Unit Hacks . | . . . Scanalyzer . | . . . Garrison Access Hacks . | . . . Unauthorized Hacks . | . . . Terminals . | . . . Fabricators . | . . . Repair Stations . | . . . Recycling Units . | . . . Scanalyzers . | . . . Garrison Access . | . . . Data Cores Recovered . | . . . Used . | . . . Hacking Detections 1 | . 1 . Full Trace Events . | . . . Feedback Events . | . . . Feedback Blocked . | . . . Robot Schematics Acquired . | . . . Robots Built . | . . . Matter . | . . . Time . | . . . Total Robot Build Rating . | . . . Part Schematics Acquired . | . . . Parts Built . | . . . Matter . | . . . Time . | . . . Total Part Build Rating . | . . . Parts Repaired . | . . . Time . | . . . Parts Recycled . | . . . Recycled Matter . | . . . Retrieved Matter . | . . . Retrieved Components . | . . . Parts Scanalyzed . | . . . Part Schematics Acquired . | . . . Parts Damaged . | . . . Bothacking | -11 -10 -10 ------------ Run | Scr Mat Min Used RIF Installer . | . . . Robots Hacked . | . . . Non-combat . | . . . Combat . | . . . Robot Hacks Applied . | . . . Relay Couplers Released . | . . . Robots Rewired . | . . . Allies Hacked . | . . . Hacks Repelled . | . . . Allies | -11 -10 -10 -------- Run | Scr Mat Min Total Allies 1 | . 1 . Largest Group 1 | . 1 1 Highest-Rated Group 59 | . 59 59 Highest-Rated Ally 59 | . 59 59 Total Orders . | . . . Ally Attacks 28 | . 20 8 Total Damage 1669 | . 393 1276 Kills 24 | . 7 17 Allies Corrupted . | . . . Allies Melted . | . . . Intel | -11 -10 -10 ------- Run | Scr Mat Min Robot Analysis Total . | . . . Derelict Logs Recovered . | . . . Drone Launches . | . . . Drone Recoveries . | . . . Exploration | -11 -10 -10 ------------- Run | Scr Mat Min Turns Passed 532 | 92 389 51 Spaces Moved 262 | 59 184 19 Core 11 | 11 . . Treads 239 | 36 184 19 Legs . | . . . Wheels 12 | 12 . . Hover . | . . . Flight . | . . . Fastest Speed 50 | 50 160 160 Average Speed 151 | 123 160 160 Slowest Speed 160 | 160 160 160 Overloaded Moves . | . . . Propulsion Burnouts . | . . . Robots Hopped . | . . . Cave-ins Triggered . | . . . Exploration Rate (%) 18 | 5 32 18 Regions Visited 2 Branch Regions 1 Pre-discovered Areas . | . . . Known Exits Taken 1 | . 1 . Unknown Exits Taken 1 | 1 . . Scrap Searched . | . . . Spaces Dug . | . . . Terrain Destroyed . | . . . Melee . | . . . Projectile . | . . . AOE . | . . . Terrain Rammed . | . . . Walls Destroyed . | . . . Machines Disabled . | . . . Actions | -11 -10 -10 --------- Run | Scr Mat Min Total 344 | 76 242 26 Wait 30 | 2 28 . Move 260 | 58 183 19 Hop . | . . . Pick Up 14 | 9 5 . Fast Attach 4 | 3 1 . Attach 3 | 3 . . Detach . | . . . Swap 2 | 1 1 . Drop 5 | . 5 . Fire 26 | . 19 7 Melee . | . . . Ram . | . . . Kick . | . . . Crush . | . . . Escape Stasis . | . . . Rewire . | . . . Trap . | . . . Miscellaneous . | . . . Route ------- -11/Scrapyard -10/Materials -10/Mines History --------- Turn | Location | Event 12 | -11/Scrapyard | Discovered new exit (range 16) 93 | -11/Scrapyard | Entered Materials 272 | -10/Materials | Identified exit to Mines 300 | -10/Materials | Build established: Mutant 482 | -10/Materials | Entered Mines 482 | -10/Mines | Accompanied by 1 ally 488 | -10/Mines | Assembled infested the area 502 | -10/Mines | Core integrity fell below 50% 533 | -10/Mines | Core integrity fell below 20% 533 | -10/Mines | Destroyed by D-53 Grenadier with Mini Grenade Launcher Last Messages --------------- 00501_ as-29622 destroyed. 00501_ as-80005 destroyed. 00501_ as-47573 destroyed. Player 2: "So much skill." 00501_ as-23944 destroyed. 00501_ as-32934 destroyed. 00506_ as-95774 destroyed. 00506_ as-15984 destroyed. 00506_ as-24249 destroyed. 00509_ as-68408 destroyed. 00509_ as-09809 destroyed. 00510_ as-07935 destroyed. 00516_ as-11242 destroyed. 00519_ The unstable cave ceiling collapses. 00520_ as-80919 destroyed. 00527_ The unstable cave ceiling collapses. 00528_ C-30 ARC bursts open, deploying its payload. 00528_ D-53 Grenadier unfolds itself. 00531_ Lgt. Treads destroyed. 00531_ Assault Rifle destroyed. Map ----- +----------------------------------------------------+ | | | | | | | | | | | | | | | | | | | ?????????????????????????????????????????????????? | | ?????????????????????????????????????????????????? | | ????????###??????#######?????????????????????????? | | ????????# #????## ##????????????????????????? | | ???????? ???## #????????????????????????? | | ?????????? #### ##???????????????????????? | | ???????????# ##??????????????????????? | | ???????????# #??????????????????????? | | ???????????# #??????????????????????? | | ??????????## #??????????????????????? | | ??????????# #??????????????????????? | | ?????????## ##??????????? ?????????? | | ?????????# ##???????? ?????????? | | ?????????# # ####### #?????????? | | ?????????# ## # #??????????? | | ?????????# ##### #???????????? | | ?????????# #??## @ #????????????? | | ????????# #??# @ ##????????????? | | ??????? #?# #?????????????? | | ?????# ## #????????????? | | ?????# ## # #????????????? | | ???? #?## # #???????????? | | ??? #???## # #???????????? | | ??#######?????## ### #??????????? | | ????????????????###?# dd #?????????? | | ???????????????????? % # < ?????????? | | ???????????????????# ??????????? | | ??????????????????? # # ??????????? | | ??????????????????######### ### # ???????????? | | ??????????????????????????? #??#### ???????????? | | ??????????????????????????? #?????? ?????????????? | | ??????????????????????????? ?????????????????????? | | ??????????????????????????? ?????????????????????? | | ?????????????????????????????????????????????????? | | ?????????????????????????????????????????????????? | | ?????????????????????????????????????????????????? | | ?????????????????????????????????????????????????? | | ?????????????????????????????????????????????????? | | ?????????????????????????????????????????????????? | | ?????????????????????????????????????????????????? | | ?????????????????????????????????????????????????? | +----------------------------------------------------+ Best States ------------- Heat Dissipation 25 Energy Generation 10 Energy Capacity 250 Matter Stores 300 Matter Capacity 300 Sight Range 16 Robot Scan Range 10 Terrain Scan Density 10 Power Shielding 33 Evasion (%) 50 Recoil Reduction 2 Item Schematics ----------------- None Robot Schematics ------------------ None Fabricated ------------ Nothing Alien Tech Used ----------------- None Achievements -------------- None Challenges ------------ None Player 2 | -11 -10 -10 ---------- Run | Scr Mat Min Slots Evolved . | . . . Power . | . . . Propulsion . | . . . Utility . | . . . Weapon . | . . . Parts Attached 14 | . 14 . Parts Lost 3 | . 2 1 Damage Taken 489 | . 249 240 Core 132 | . 84 48 Player 2/Cogmind (%) 50 | . 88 28 Absorbed by Shields . | . . . Damage Inflicted 1669 | . 393 1276 Player 2/Cogmind (%) 84 | . 63 94 Combat Hostiles Destroyed 22 | . 5 17 Player 2/Cogmind (%) 84 | . 62 94 Game ------ Seed GuidedInsulationPurifier Manual? 0 Play Time 00:13:41 Cumulative 22.6 hours Start 2021.05.27 @ 21:14:52 End 2021.05.27 @ 21:27:02 Sessions 1 Manual Loads 0 Difficulty Rogue Special Mode AFD2020/Player2 Game No. 49 Rogue 49 Adventurer 0 Explorer 0 Win Type - Total 0 Types 0/0/0/0/0/0/0/0/0 Lore% 12 Gallery% 26 Achievement% 15 Wizard Run 0 Options --------- ASCII 0 Keyboard 0 Movement Arrows Keybinds 0 Fullscreen 1 Font 12/Smallcaps Map View 83x54 Tactical HUD 1 Map Filters NONE Filters NONE Steam 1 RUN: 1458d771-d891-4f05-8a9a-67bbe3da0c75